bitfinex/quotes_ETHUSD_20260209
["timestamp","ask_amount","ask_price","bid_price","bid_amount"]
[1770656611165,1.02175196,2097.8,2097.1,1.4815778]
[1770656611353,1.19155426,2098.1,2097.4,1.4805778]
[1770656611542,1.02465282,2098.0,2097.4,1.4805778]
[1770656611746,0.002,2098.1,2097.4,1.4805778]
[1770656611951,1.02462212,2098.0,2097.4,1.4805778]
[1770656612147,0.002,2098.1,2097.4,1.4805778]
[1770656612347,1.02528824,2098.0,2097.4,1.4805778]
[1770656612553,1.02528824,2097.9,2097.3,0.001]
[1770656612762,1.02528824,2097.8,2097.3,0.001]
[1770656612964,1.27338955,2098.0,2097.3,0.001]
[1770656613177,2.29878374,2098.0,2097.3,0.001]
[1770656613862,1.19166785,2097.9,2097.3,0.001]
[1770656614166,1.02539419,2097.8,2097.3,0.001]
[1770656614351,1.02539419,2097.7,2097.3,0.001]
[1770656614550,1.19166785,2097.9,2097.3,0.001]
[1770656614754,1.02513835,2097.8,2097.3,0.001]
[1770656614960,1.02513835,2097.7,2097.3,0.001]
[1770656615162,1.02513835,2097.7,2097.0,1.4815778]
[1770656615163,2.2985279,2097.6,2097.0,0.001]
[1770656615364,2.2985279,2097.7,2097.1,1.4805778]
[1770656615676,1.19163876,2098.0,2097.1,1.4805778]
[1770656615861,6.47099878,2098.1,2097.1,2.67269433]
[1770656615862,4.76824732,2098.1,2097.1,2.67269433]
[1770656616172,4.76824732,2098.1,2097.1,1.4805778]
[1770656616561,4.76824732,2098.1,2097.0,1.19314171]
[1770656617239,4.76824732,2098.1,2097.0,0.001]
[1770656617676,4.8350221,2098.1,2097.0,0.001]
[1770656617835,6.53777356,2098.1,2097.0,0.001]
[1770656618464,4.76824732,2098.1,2097.0,0.97222853]
[1770656618843,6.53777356,2098.1,2097.0,0.97222853]
[1770656619042,6.53777356,2098.1,2097.0,0.001]
[1770656619675,1.70275146,2098.0,2097.0,0.001]
[1770656619988,2.96119409,2097.9,2097.0,0.001]
[1770656620286,0.06677478,2097.3,2096.5,0.001]
[1770656620441,1.70275146,2097.6,2096.7,0.97122853]
[1770656620643,2.89441931,2097.9,2096.7,0.97122853]
[1770656620942,1.70275146,2097.8,2096.7,0.97122853]
[1770656621142,2.89441931,2097.9,2096.7,0.97122853]
[1770656621342,1.76952624,2097.8,2096.7,0.97122853]
[1770656621654,1.70275146,2097.5,2096.5,0.001]
[1770656621866,1.19200877,2097.3,2096.5,0.001]
[1770656622373,1.19200877,2097.3,2096.5,0.97222853]
[1770656622791,1.19183829,2097.6,2096.5,0.97222853]
[1770656623789,4.766916,2097.8,2096.6,1.19240675]
[1770656623973,4.766916,2097.8,2096.7,4.30222853]
[1770656624861,0.06677478,2097.7,2096.5,0.001]
[1770656625111,1.76952624,2097.7,2096.5,0.001]
[1770656625268,1.76952624,2097.7,2096.9,0.001]
[1770656625478,1.70275146,2097.6,2096.9,0.001]
[1770656625682,0.06677478,2097.3,2096.6,0.001]
[1770656625864,1.19206561,2097.2,2096.6,0.001]
[1770656626869,0.06677478,2097.1,2096.3,0.001]
[1770656627295,2.89481707,2097.2,2096.3,0.001]
[1770656627296,2.96159185,2097.2,2096.3,0.001]
[1770656627489,1.02268403,2097.1,2096.3,0.001]
[1770656627699,2.96159185,2097.2,2096.3,0.001]
[1770656627700,1.02268403,2097.0,2096.3,0.001]
[1770656627897,1.19229301,2096.8,2096.3,0.001]
[1770656628987,1.02239626,2096.7,2096.3,0.001]
[1770656629302,1.19229301,2096.8,2096.3,0.001]
[1770656629601,1.02214915,2096.7,2096.3,0.001]
[1770656629767,1.19229301,2096.8,2096.3,0.001]
[1770656629964,4.76917207,2096.9,2096.3,0.001]
[1770656630398,1.02185784,2096.8,2096.3,0.001]
[1770656630707,4.76917207,2096.9,2096.3,0.001]
[1770656631506,1.19206561,2097.2,2096.3,0.001]
[1770656631709,1.02163562,2097.1,2096.3,0.96900862]
[1770656631883,1.19206561,2097.2,2096.3,0.96900862]
[1770656632084,1.1921793,2097.0,2096.3,2.16157541]
[1770656632393,1.1921793,2097.0,2096.3,2.16156619]
[1770656632612,4.76692411,2097.8,2096.7,0.2335703]
[1770656632816,4.76692411,2097.8,2096.8,0.96800862]
[1770656633335,0.002,2097.9,2096.8,0.96800862]
[1770656633535,0.002,2097.9,2097.0,0.96800862]
[1770656633822,1.19368025,2097.9,2097.0,0.96800862]
[1770656634219,0.002,2097.9,2097.0,2.16018421]
[1770656634417,0.002,2097.9,2097.0,0.96800862]
[1770656634712,0.002,2097.9,2097.0,2.16018437]
[1770656635588,0.002,2097.9,2097.1,0.96800862]
[1770656635990,0.002,2097.9,2096.7,0.96800862]
[1770656636215,1.02246429,2097.8,2096.7,0.96800862]
[1770656636527,1.02246429,2097.7,2096.7,2.16035393]
[1770656636725,0.002,2097.9,2096.7,0.96800862]
[1770656636892,1.02244179,2097.8,2096.7,2.16034975]
[1770656637085,1.02244179,2097.7,2096.7,0.96800862]
[1770656637297,0.002,2097.9,2096.7,0.96800862]
[1770656637497,0.06677478,2097.8,2096.3,5.59594588]
[1770656637708,1.02319377,2097.7,2096.7,0.001]
[1770656637913,1.02319377,2097.6,2096.7,0.001]
[1770656638113,1.19189511,2097.5,2096.7,0.001]
[1770656638308,1.19186985,2097.6,2096.7,0.96900862]
[1770656640130,0.002,2097.7,2096.9,0.96800862]
[1770656640843,1.02424438,2097.6,2096.9,0.96800862]
[1770656641017,1.02424438,2097.5,2096.7,0.001]
[1770656641220,1.02424438,2097.4,2096.7,0.001]
[1770656641408,0.002,2097.7,2096.7,0.001]
[1770656641609,1.02448377,2097.6,2096.7,0.001]
[1770656641821,1.02448377,2097.5,2096.7,0.001]
[1770656642048,1.02448377,2097.4,2096.7,0.001]
[1770656642342,2.21649254,2097.3,2096.7,0.001]
[1770656642638,1.19200877,2097.3,2096.7,0.001]
[1770656643017,1.02480908,2097.2,2096.7,0.001]
[1770656643222,1.19200877,2097.3,2096.7,0.001]
[1770656643431,1.02495099,2097.2,2096.7,0.001]
[1770656643635,1.19200877,2097.3,2096.7,0.001]
[1770656643940,1.02495205,2097.2,2096.7,0.001]
[1770656644140,4.76803509,2097.4,2096.7,0.001]
[1770656644313,1.02508545,2097.3,2096.7,0.001]
[1770656644638,1.09186023,2097.2,2096.7,0.001]
[1770656644812,2.72783691,2097.1,2096.5,0.001]
[1770656645013,1.02508545,2097.0,2096.5,0.001]
[1770656645240,1.02508545,2097.0,2096.3,0.001]
[1770656645613,1.02508545,2096.9,2096.3,0.001]
[1770656645832,1.02508545,2096.8,2096.3,0.001]
[1770656646037,1.70275146,2097.2,2096.3,0.001]
[1770656646237,1.02511657,2097.1,2096.3,0.96900862]
[1770656646442,1.19383829,2097.7,2096.4,1.04178066]
[1770656646641,4.76738403,2097.6,2096.4,1.10855544]
[1770656646837,4.76738403,2097.6,2096.4,1.04178066]
[1770656647217,0.002,2097.7,2096.8,0.93938066]
[1770656647842,1.19378678,2097.7,2096.8,0.93938066]
[1770656648229,0.002,2097.7,2096.9,2.13161681]
[1770656648549,0.002,2097.7,2097.1,0.93938066]
[1770656648922,0.002,2097.9,2097.4,0.93938066]
[1770656650552,0.002,2097.9,2097.5,2.13127577]
[1770656650852,0.002,2097.9,2097.6,0.93938066]
[1770656651041,0.002,2097.7,2097.6,0.93938066]
[1770656651221,0.002,2097.9,2097.6,0.93938066]
[1770656653224,0.002,2097.9,2097.0,1.19215168]
[1770656653424,0.002,2097.9,2097.0,9.03907323]
[1770656653639,0.002,2097.9,2097.1,1.19209213]
[1770656653839,0.002,2097.9,2097.1,1.19211882]
[1770656654039,0.002,2097.9,2097.0,4.27038066]
[1770656654244,0.002,2097.9,2097.0,5.46253316]
[1770656654523,0.002,2097.9,2097.1,1.19210959]
[1770656654724,0.002,2097.9,2097.0,5.46252513]
[1770656654919,0.002,2097.9,2097.0,4.27038066]
[1770656655648,0.002,2097.9,2097.0,3.331]
[1770656656230,0.06677478,2097.8,2097.0,3.331]
[1770656656535,0.06677478,2097.8,2096.7,0.001]
[1770656656735,2.72613813,2097.9,2096.7,0.001]
[1770656656959,0.06677478,2097.8,2096.7,0.001]
[1770656657262,1.19189511,2097.5,2096.7,0.001]
[1770656657922,2.89464657,2097.5,2096.7,0.001]
[1770656658124,1.19189511,2097.5,2096.7,0.001]
[1770656658530,1.02323382,2097.4,2096.7,0.001]
[1770656658745,1.02323382,2097.3,2096.7,0.001]
[1770656658930,1.19189511,2097.5,2096.7,0.001]
[1770656659122,1.02313976,2097.4,2096.7,0.001]
[1770656659335,1.19200877,2097.3,2096.7,0.001]
[1770656660033,4.89458436,2097.3,2096.7,0.001]
[1770656660234,1.02371116,2097.2,2096.5,0.001]
[1770656661356,1.19212245,2097.1,2096.5,0.001]
[1770656662138,1.02424444,2097.0,2096.3,0.001]
[1770656662457,1.02424444,2096.9,2096.3,0.001]
[1770656662657,1.02424444,2096.8,2096.3,0.001]
[1770656662873,2.89487391,2097.1,2096.9,0.001]
[1770656663036,1.02442215,2097.0,2096.3,0.001]
[1770656663231,1.19229301,2096.8,2096.2,0.001]
[1770656663557,1.02442215,2096.7,2096.6,0.001]
[1770656663766,1.02442215,2096.7,2096.2,0.001]
[1770656664068,1.02442215,2096.6,2096.2,0.001]
[1770656664231,1.02442215,2096.6,2096.0,0.001]
[1770656664232,1.02442215,2096.5,2096.0,0.001]
[1770656664434,1.02442215,2096.4,2095.8,0.001]
[1770656664650,1.09119693,2096.3,2095.6,0.001]
[1770656664848,1.09119693,2096.3,2095.2,0.001]
[1770656664849,0.06677478,2096.1,2095.2,0.001]
[1770656665157,0.06677478,2095.9,2094.4,0.94236037]
[1770656665335,1.19291883,2095.7,2094.4,2.13600908]
[1770656665535,1.19291883,2095.7,2094.7,0.94336037]
[1770656667335,4.77122953,2095.9,2094.8,0.94236037]
[1770656668368,4.83800431,2095.9,2094.8,0.94236037]
[1770656669964,4.83800431,2095.9,2094.7,0.001]
[1770656670266,1.01819715,2095.8,2094.7,0.001]
[1770656670432,0.06677478,2095.7,2094.7,0.001]
[1770656671163,5.7473425,2095.9,2094.7,0.94336037]
[1770656671164,4.77122953,2095.9,2094.7,0.94336037]
[1770656671339,8.10422953,2095.9,2094.9,0.94236037]
[1770656671737,4.525805,2095.9,2094.9,0.94236037]
[1770656671932,4.525805,2095.9,2095.1,0.94236037]
[1770656672361,1.19277086,2096.0,2095.1,0.94236037]
[1770656673591,1.19257739,2096.3,2095.3,0.94236037]
[1770656673759,1.1921793,2097.0,2095.5,0.94236037]
[1770656673966,1.19229301,2096.8,2095.8,2.13522228]
[1770656674476,1.19229301,2096.8,2095.9,0.94236037]
[1770656675548,1.19229301,2096.8,2096.0,0.001]
[1770656675774,0.002,2096.7,2096.0,0.001]
[1770656676449,0.002,2096.7,2096.0,0.94336037]
[1770656676970,0.002,2096.9,2096.1,0.94236037]
[1770656677679,0.002,2096.9,2096.3,0.94236037]
[1770656678178,0.002,2096.9,2096.5,0.94236037]
[1770656678382,1.19195194,2097.4,2096.5,0.94236037]
[1770656678961,1.19195194,2097.4,2096.4,0.94236037]
[1770656679155,1.19392111,2097.5,2096.4,0.94236037]
[1770656679756,3.333,2097.4,2096.2,3.333]
[1770656679950,3.333,2097.4,2096.0,0.001]
[1770656679951,0.06677478,2096.9,2096.0,0.001]
[1770656680195,3.333,2096.8,2096.0,0.001]
[1770656681693,2.46244094,2097.1,2096.0,0.94336037]
[1770656681984,0.002,2097.5,2096.3,1.19257739]
[1770656682186,0.002,2097.5,2096.4,0.94236037]
[1770656682363,0.002,2097.5,2096.8,0.94236037]
[1770656682891,0.002,2097.5,2096.9,0.94236037]
[1770656683710,0.002,2097.5,2096.4,0.94236037]
[1770656683998,0.002,2097.5,2096.0,0.94336037]
[1770656684210,1.01978505,2097.4,2096.0,0.94336037]
[1770656684369,0.06677478,2097.4,2096.0,0.94336037]
[1770656684567,1.01981262,2097.3,2096.0,0.94336037]
[1770656684790,1.2722796,2097.5,2096.0,0.94336037]
[1770656685299,1.01995794,2097.4,2096.0,0.94336037]
[1770656685809,1.01995794,2097.4,2096.2,0.90397423]
[1770656686182,1.19200877,2097.3,2096.2,2.09656127]
[1770656687580,1.19200877,2097.3,2096.2,0.90397423]
[1770656687973,1.19200877,2097.3,2096.2,2.09660147]
[1770656688169,4.76803509,2097.4,2096.2,2.09660147]
[1770656688399,1.02080426,2097.3,2096.2,2.09660147]
[1770656688586,4.76803509,2097.4,2096.2,2.09660147]
[1770656688791,1.02080437,2097.3,2096.2,2.09660147]
[1770656689004,4.76803509,2097.4,2096.2,2.09660683]
[1770656689298,1.02080151,2097.3,2096.2,0.90497423]
[1770656689501,0.06877478,2097.2,2096.2,0.001]
[1770656689676,2.29880126,2097.2,2096.2,0.001]
[1770656690004,1.02080151,2097.1,2096.2,0.001]
[1770656690185,1.1921793,2097.0,2096.2,0.001]
[1770656691902,0.002,2097.2,2096.2,0.90497423]
[1770656692101,0.002,2097.2,2096.4,0.90397423]
[1770656692402,0.002,2097.2,2096.6,0.90397423]
[1770656693412,3.334,2097.2,2096.2,0.001]
[1770656693704,2.33323657,2096.7,2095.8,0.001]
[1770656693904,5.6288525,2096.6,2095.8,0.001]
[1770656694101,1.02074362,2096.5,2095.8,0.001]
[1770656694303,1.19252051,2096.4,2095.8,0.001]
[1770656695802,1.02127468,2096.3,2095.8,0.001]
[1770656696103,1.19252051,2096.4,2095.1,0.001]
[1770656696313,1.27610888,2096.8,2095.6,0.90397423]
[1770656696607,1.1921793,2097.1,2095.7,0.97074901]
[1770656697103,1.02126036,2097.0,2095.7,0.90397423]
[1770656697407,1.1921793,2097.1,2095.7,0.90397423]
[1770656697589,1.02162761,2097.0,2095.7,0.90397423]
[1770656697797,1.1921793,2097.1,2095.7,0.90397423]
[1770656697996,1.02164478,2097.0,2095.7,0.90397423]
[1770656698200,1.02164478,2096.9,2095.7,0.90397423]
[1770656698398,1.19223615,2096.9,2095.8,1.19286191]
[1770656698917,1.19223615,2096.9,2095.7,2.09684851]
[1770656699090,1.02267487,2096.8,2095.7,2.09684851]
[1770656699290,1.19223615,2096.9,2095.7,2.09684851]
[1770656699513,1.02265947,2096.8,2095.7,2.09684851]
[1770656699724,1.19223615,2096.9,2095.7,2.09684851]
[1770656700096,1.19223615,2096.9,2095.8,0.90397423]
[1770656700300,1.02339361,2096.8,2095.8,0.90397423]
[1770656700626,1.19234988,2096.7,2095.6,3.332]
[1770656700796,1.27610888,2096.4,2095.1,0.001]
[1770656701139,3.333,2096.3,2095.5,1.19300877]
[1770656701431,1.02457498,2096.2,2095.4,1.19306265]
[1770656701596,1.27610888,2096.5,2095.8,1.19281329]
[1770656701930,1.19234988,2096.7,2096.0,0.001]
[1770656702110,1.02440071,2096.6,2096.0,0.001]
[1770656702307,1.02440071,2096.5,2096.0,0.001]
[1770656702511,1.19246362,2096.5,2096.0,0.001]
[1770656703004,1.02497351,2096.4,2096.0,0.001]
[1770656703204,1.02536314,2096.3,2095.8,0.001]
[1770656703525,1.02536314,2096.2,2095.1,2.0982099]
[1770656703731,1.02536314,2096.1,2095.1,0.001]
[1770656704047,1.27610888,2096.1,2095.1,0.001]
[1770656704202,2.30147202,2096.1,2095.1,0.001]
[1770656704401,1.19274809,2096.0,2095.1,0.001]
[1770656704616,1.02536314,2095.9,2095.1,0.001]
[1770656704832,1.19274809,2096.0,2095.1,0.90497423]
[1770656705032,1.19267877,2096.2,2095.1,0.90497423]
[1770656705399,6.0459646,2096.5,2095.1,0.90497423]
[1770656705400,1.27610888,2096.5,2095.4,0.1024]
[1770656705601,2.4683871,2096.9,2095.7,0.90397423]
[1770656705799,1.02451939,2096.8,2095.8,0.90397423]
[1770656706026,1.02451939,2096.7,2095.8,0.90397423]
[1770656706304,1.19227822,2096.9,2095.8,0.90397423]
[1770656706500,2.21691246,2096.8,2095.9,2.09677923]
[1770656706718,1.19233191,2096.8,2095.9,2.09677923]
[1770656707327,3.49313483,2096.8,2095.7,1.19289784]
[1770656707626,1.02469404,2096.7,2095.6,1.19294522]
[1770656707834,1.02469404,2096.7,2095.5,2.19939481]
[1770656708041,1.02469404,2096.7,2095.6,1.19297563]
[1770656708428,1.02469404,2096.7,2095.5,1.00637423]
[1770656708625,1.19240675,2096.6,2095.6,1.19296448]
[1770656708817,1.02469404,2096.5,2095.6,1.19296448]
[1770656710516,4.76962701,2096.7,2095.6,1.19296448]
[1770656710733,1.02488759,2096.6,2095.6,1.19296448]
[1770656711042,4.76962701,2096.7,2095.5,2.19937065]
[1770656711043,1.02492495,2096.5,2095.5,2.19937065]
[1770656711341,4.76962701,2096.7,2095.5,2.19937065]
[1770656711544,1.02490777,2096.6,2095.5,2.19937065]
[1770656711727,1.02490777,2096.5,2095.6,0.90397423]
[1770656711916,4.76962701,2096.7,2095.6,0.90397423]
[1770656712113,1.02483177,2096.6,2095.6,0.90397423]
[1770656712319,4.76962701,2096.7,2095.6,0.90397423]
[1770656712539,1.02500641,2096.6,2095.6,0.90397423]
[1770656712840,1.19252051,2096.4,2095.6,0.90397423]
[1770656713213,1.02585819,2096.3,2095.3,1.19311341]
[1770656713451,2.30196707,2096.3,2095.2,1.19315994]
[1770656713753,1.02585819,2096.2,2095.1,2.09823255]
[1770656713932,2.30196707,2096.2,2095.2,1.19319969]
[1770656714118,1.02585819,2096.1,2095.1,2.09818858]
[1770656714442,1.02585819,2096.0,2095.7,0.001]
[1770656714744,1.02610034,2095.9,2095.1,0.001]
[1770656714931,1.02610034,2095.8,2095.1,0.001]
[1770656715238,1.27610888,2096.0,2095.1,0.001]
[1770656715440,2.30201347,2096.0,2095.1,0.001]
[1770656716018,1.27610888,2095.7,2095.1,0.001]
[1770656716233,2.30201347,2095.6,2094.9,0.001]
[1770656716622,2.21854129,2095.5,2094.9,0.001]
[1770656716827,1.19307494,2095.5,2094.9,0.001]
[1770656718731,1.19286191,2095.8,2094.9,0.001]
[1770656718941,3.49962855,2095.8,2094.9,0.001]
[1770656719142,5.63976664,2095.7,2094.9,0.001]
[1770656719326,1.0249337,2095.6,2094.9,0.001]
[1770656720947,1.19303268,2095.5,2094.9,0.001]
[1770656721246,1.19302092,2095.6,2094.9,0.95677299]
[1770656721654,3.333,2095.7,2094.9,0.95677299]
[1770656721852,1.19295433,2095.7,2094.9,0.95677299]
[1770656722367,3.334,2096.1,2094.9,0.95677299]
[1770656722537,1.19259209,2096.3,2095.3,0.95577299]
[1770656723067,4.77030959,2096.4,2095.4,1.19308962]
[1770656723243,1.02501162,2096.3,2095.4,2.14886261]
[1770656723443,4.77030959,2096.4,2095.4,1.19308962]
[1770656723640,1.02511261,2096.3,2095.1,1.05817299]
[1770656723840,1.02511261,2096.2,2095.1,2.25140843]
[1770656724041,1.02511261,2096.1,2095.1,2.14903303]
[1770656724242,1.02511261,2096.0,2095.1,0.95577299]
[1770656724470,1.28183294,2096.2,2095.1,0.95577299]
[1770656724769,1.02526215,2096.1,2095.0,4.52727923]
[1770656724966,1.192805,2095.9,2095.0,4.52727923]
[1770656725160,1.192805,2095.9,2095.0,3.334]
[1770656725543,1.02529121,2095.8,2095.0,3.334]
[1770656725758,1.192805,2095.9,2095.0,3.334]
[1770656725759,1.02532884,2095.7,2095.0,3.334]
[1770656725946,1.192805,2095.9,2095.0,3.334]
[1770656726154,1.02533887,2095.8,2095.0,3.334]
[1770656726356,1.02533887,2095.7,2095.0,5.48307964]
[1770656726561,1.192805,2095.9,2095.0,5.48307964]
[1770656726769,1.02519155,2095.8,2095.0,5.48307964]
[1770656727071,1.02519155,2095.7,2095.0,5.48307964]
[1770656727277,1.02519155,2095.7,2094.9,0.001]
[1770656727278,1.19297575,2095.6,2094.9,0.001]
[1770656727641,1.02548775,2095.5,2095.2,0.001]
[1770656727857,1.02548775,2095.4,2095.2,0.001]
[1770656728058,1.02548775,2095.3,2095.2,0.001]
[1770656728260,1.02548775,2095.3,2094.9,0.001]
[1770656728462,2.47480869,2095.6,2094.9,0.001]
[1770656728649,1.02542031,2095.5,2094.9,0.001]
[1770656728977,1.02542031,2095.4,2094.9,0.001]
[1770656729173,1.02561647,2095.3,2094.7,0.001]
[1770656729477,0.06677478,2094.9,2093.5,5.99086411]
[1770656729678,9.84685323,2093.8,2092.8,1.19453143]
[1770656729854,2.30768874,2093.7,2092.9,1.1945012]
[1770656730047,4.61607227,2094.0,2093.0,1.19444977]
[1770656730243,1.02592853,2093.9,2092.9,1.19450639]
[1770656730577,1.02396018,2093.8,2092.9,1.19450639]
[1770656730771,4.61607227,2094.0,2092.7,2.15035937]
[1770656731072,1.02397553,2093.9,2092.9,1.19447267]
[1770656731241,1.19400133,2093.8,2093.0,0.95577299]
[1770656731560,1.19383028,2094.1,2093.0,0.95577299]
[1770656732870,1.0213003,2094.0,2092.6,2.15603151]
[1770656733071,1.0213003,2093.9,2092.8,2.15034422]
[1770656733250,1.19377327,2094.2,2092.9,0.95577299]
[1770656733595,1.19377327,2094.2,2093.1,0.95577299]
[1770656735289,4.77509311,2094.4,2093.2,1.19434358]
[1770656735602,4.77509311,2094.4,2093.2,2.15011657]
[1770656736658,4.77509311,2094.4,2093.3,0.95577299]
[1770656737663,4.77509311,2094.4,2093.3,2.15000762]
[1770656737874,4.77509311,2094.4,2093.4,0.95577299]
[1770656738277,4.77509311,2094.4,2093.1,0.95577299]
[1770656738476,4.77509311,2094.4,2092.6,0.0056]
[1770656738477,1.08594292,2094.3,2092.8,1.19456649]
[1770656738679,1.08594292,2094.3,2092.6,4.78422263]
[1770656738680,0.06677478,2093.4,2092.6,0.0056]
[1770656738878,3.336,2093.3,2092.6,0.0056]
[1770656739686,2.27991458,2093.2,2092.6,0.0056]
[1770656739884,1.19434358,2093.2,2092.6,0.0056]
[1770656740082,1.19434358,2093.2,2092.0,1.19502637]
[1770656740284,1.19434358,2093.2,2091.9,0.95577299]
[1770656740458,1.19434358,2093.2,2092.0,1.19502709]
[1770656740789,1.19434358,2093.2,2092.1,1.19495924]
[1770656740984,1.19434358,2093.2,2092.0,1.1949959]
[1770656741283,1.19434358,2093.2,2091.9,2.15081053]
[1770656741512,0.06677478,2093.1,2091.7,1.19516692]
[1770656741791,1.19445771,2093.0,2091.7,0.1024]
[1770656742262,1.19445771,2093.0,2091.7,1.05817299]
[1770656742797,1.19445771,2093.0,2092.1,0.001]
[1770656743365,2.1071968,2093.0,2092.1,0.001]
[1770656743791,1.19445771,2093.0,2092.1,0.001]
[1770656745875,4.77783086,2093.2,2092.1,0.94083655]
[1770656747187,4.77783086,2093.2,2092.1,0.001]
[1770656747391,4.77783086,2093.2,2092.1,0.94083655]
[1770656747702,8.11483086,2093.2,2092.1,0.94083655]
[1770656747909,8.11483086,2093.2,2092.2,1.19491444]
[1770656748406,8.11483086,2093.2,2092.1,2.13576583]
[1770656748585,0.95064948,2092.8,2092.1,0.001]
[1770656748775,3.40477478,2092.7,2092.1,0.001]
[1770656749277,3.338,2092.7,2091.4,0.93983655]
[1770656749473,3.338,2092.7,2091.8,1.19513616]
[1770656749672,3.338,2092.7,2091.7,1.1951582]
[1770656749884,3.338,2092.8,2091.7,2.13499475]
[1770656751214,3.338,2092.8,2091.6,1.19522707]
[1770656751514,1.19445771,2093.0,2091.8,0.93983655]
[1770656751891,3.338,2093.3,2091.9,1.1950858]
[1770656751892,4.77783086,2093.2,2091.9,1.1950858]
[1770656752291,4.77783086,2093.2,2091.9,2.13492235]
[1770656752485,4.77783086,2093.2,2092.0,1.00661133]
[1770656752915,1.19417243,2093.5,2092.2,0.93983655]
[1770656753115,1.19417243,2093.5,2092.2,1.00661133]
[1770656753909,1.19417243,2093.5,2092.3,1.19485733]
[1770656754108,1.19417243,2093.5,2092.4,0.93983655]
[1770656754307,1.19400133,2093.8,2092.6,0.93983655]
[1770656754651,8.11400534,2094.0,2092.8,0.93983655]
[1770656754652,4.53192846,2094.0,2092.8,0.93983655]
[1770656755138,4.53192846,2094.0,2092.6,0.16917478]
[1770656755139,1.07956283,2094.1,2093.1,0.93983655]
[1770656755293,0.002,2094.2,2093.4,0.93983655]
[1770656755497,0.002,2094.2,2093.2,0.06677478]
[1770656755498,0.002,2094.2,2093.5,0.93983655]
[1770656755798,1.19577544,2094.2,2093.5,0.93983655]
[1770656755999,0.002,2094.2,2093.6,1.19411539]
[1770656757707,0.002,2094.2,2093.1,9.05534219]
[1770656757915,0.002,2094.2,2093.3,1.19428653]
[1770656760318,0.002,2094.2,2093.4,0.93983655]
[1770656760730,9.99717792,2095.8,2094.9,1.6284618]
[1770656760933,1.19409565,2097.2,2096.8,3.38340001]
[1770656761236,1.19409565,2097.2,2095.0,3.2164]
[1770656761237,9.60286412,2096.9,2096.1,0.249]
[1770656761545,9.60286412,2096.9,2096.1,1.18883655]
[1770656761546,5.50341293,2096.9,2096.1,1.18883655]
[1770656761745,0.002,2097.2,2095.2,0.93983655]
[1770656761746,1.19418646,2097.0,2095.2,0.93983655]
[1770656761949,1.19418646,2097.0,2094.8,0.93983655]
[1770656761950,0.06677478,2096.6,2094.8,0.93983655]
[1770656762153,0.06677478,2096.4,2094.9,0.1024]
[1770656762455,0.06677478,2096.2,2094.9,1.1933407]
[1770656762615,0.06677478,2096.2,2094.5,0.2335703]
[1770656762616,0.06677478,2095.7,2094.0,4.77552913]
[1770656762819,0.06677478,2095.3,2093.9,4.27683655]
[1770656763045,0.06677478,2095.5,2094.1,4.7753182]
[1770656763207,2.87035191,2095.4,2094.5,4.77432107]
[1770656763412,2.87035191,2095.6,2094.7,1.19344549]
[1770656763648,2.87035191,2095.6,2094.2,0.1024]
[1770656763851,2.87035191,2095.5,2094.9,1.19336938]
[1770656764142,2.87035191,2095.9,2094.9,1.19336945]
[1770656764347,4.06299502,2096.2,2094.8,0.1024]
[1770656764658,2.87035191,2096.1,2094.8,0.1024]
[1770656766438,1.19274809,2096.0,2094.9,1.19337438]
[1770656766941,0.06677478,2095.6,2094.6,1.19352612]
[1770656767120,0.06677478,2095.6,2094.5,1.19355705]
[1770656767315,1.25952287,2096.0,2094.8,1.19342771]
[1770656767316,2.87035191,2095.5,2094.8,1.19342771]
[1770656767516,2.87035191,2095.9,2094.8,1.19342771]
[1770656768459,2.87035191,2095.9,2094.8,0.1024]
[1770656768638,0.002,2095.7,2094.8,0.1024]
[1770656768835,0.002,2095.7,2094.7,1.19348832]
[1770656769040,2.87035191,2095.6,2094.6,1.19351056]
[1770656770461,2.87035191,2095.6,2094.5,0.1024]
[1770656770636,4.06333024,2095.6,2094.5,0.1024]
[1770656770836,2.87035191,2095.6,2094.5,0.1024]
[1770656771049,4.06335014,2095.6,2094.5,0.1024]
[1770656771561,2.87035191,2095.6,2094.5,0.1024]
[1770656771749,4.06333536,2095.6,2094.5,0.1024]
[1770656772059,2.87035191,2095.6,2094.5,0.1024]
[1770656772258,2.87035191,2095.6,2094.5,1.04223655]
[1770656772460,4.06332822,2095.6,2094.6,1.1935453]
[1770656772754,4.06334845,2095.6,2094.6,1.1935453]
[1770656772959,4.06334845,2095.6,2094.8,0.5]
[1770656773340,4.06334845,2095.6,2094.6,1.1935453]
[1770656774061,4.06333001,2095.6,2094.6,1.1935453]
[1770656774237,4.00333001,2095.6,2094.6,1.1935453]
[1770656774564,4.00333001,2095.6,2094.6,0.1024]
[1770656774730,4.00333001,2095.6,2094.3,1.19366049]
[1770656774731,0.06677478,2095.4,2094.3,1.19366049]
[1770656774935,0.06677478,2095.4,2094.0,3.336]
[1770656774936,1.01742426,2095.2,2094.0,3.336]
[1770656775134,0.95064948,2095.2,2094.3,1.19369596]
[1770656775361,2.81035191,2095.1,2094.4,1.19365811]
[1770656775564,2.81035191,2095.3,2094.4,1.19365811]
[1770656776157,2.81035191,2095.3,2094.3,1.19367363]
[1770656776359,2.81035191,2095.2,2094.4,1.19365848]
[1770656776667,2.81035191,2095.1,2094.2,5.75202119]
[1770656776849,1.19297575,2095.6,2094.2,5.75202119]
[1770656777050,2.81035191,2095.5,2094.2,5.75202119]
[1770656777256,2.81035191,2095.5,2094.3,0.97736296]
[1770656777450,1.19297575,2095.6,2094.3,0.97736296]
[1770656777763,2.81035191,2095.5,2094.3,0.97736296]
[1770656777963,2.81035191,2095.5,2094.5,0.5]
[1770656778465,2.81035191,2095.5,2094.3,0.97736296]
[1770656778676,0.06677478,2095.3,2094.2,4.77465823]
[1770656778839,1.19308962,2095.4,2094.2,4.77465823]
[1770656779039,2.81035191,2095.3,2094.4,0.1024]
[1770656779257,0.002,2095.7,2094.4,0.1024]
[1770656779258,7.58226178,2095.6,2094.4,0.1024]
[1770656779447,1.19304126,2095.5,2094.4,0.1024]
[1770656780549,2.81035191,2095.4,2094.3,0.95767889]
[1770656780762,1.19314656,2095.3,2094.4,1.19365928]
[1770656781266,2.81035191,2095.2,2094.4,1.19365928]
[1770656781643,2.81035191,2095.1,2094.4,1.19365928]